Cogmind - Beta 16.1 @@@ ROGUE MODE // 2026.03.27 @ 16:38:55 Player: ash Result: Self-destructed Performance ------------- Evolutions (2) 1000 Regions Visited (3) 600 Robots Destroyed (11) 55 Value Destroyed (188) 188 Prototype IDs (2) 40 Alien Tech Used (0) 0 Bonus (0) 0 TOTAL SCORE: 1883 Bonus ------- None Cogmind --------- Core Integrity 550/550 Matter 255/300 Energy 280/280 System Corruption 0% Temperature Cool (0) Movement Rolling (165) Ox5 Location -8/Materials Parts ------- > --- POWER (1) -------- Cooled Ion Engine > --- PROPULSION (4) --- Light Treads Aluminum Leg Wheel Compact Wheel > --- UTILITY (4) ------ Cargo Storage Unit Visual Processing Unit Transport Network Coupler > --- WEAPON (2) ------- Light Assault Rifle Heavy Assault Rifle > --- INVENTORY (30) --- Cooled Ion Engine Cooled Ion Engine Aluminum Leg High-capacity Matter Pod (200) Improved Sensor Array Light Armor Plating Tractor Beam Beam Rifle Spread Laser Faulty Improved Medium Laser Advanced Beam Cannon Light Assault Rifle Light Assault Rifle Improved Light Cannon Rocket Launcher Rocket Launcher Peak State ------------ > --- POWER ------------ Cooled Ion Engine > --- PROPULSION ------- Light Treads Aluminum Leg Wheel Compact Wheel > --- UTILITY ---------- Cargo Storage Unit Visual Processing Unit Transport Network Coupler > --- WEAPON ----------- Light Assault Rifle Heavy Assault Rifle > --- INVENTORY -------- Cooled Ion Engine Cooled Ion Engine Aluminum Leg High-capacity Matter Pod Improved Sensor Array Light Armor Plating Tractor Beam Beam Rifle Spread Laser Improved Medium Laser Advanced Beam Cannon Light Assault Rifle Light Assault Rifle Improved Light Cannon Rocket Launcher Rocket Launcher [Rating: 18] Favorites ----------- Power Cooled Ion Engine Engine Cooled Ion Engine Propulsion Aluminum Leg Treads Light Treads Leg Aluminum Leg Wheel Compact Wheel Utility Cargo Storage Unit Storage Cargo Storage Unit Processor Transport Network Coupler Weapon Light Assault Rifle Energy Gun Improved EM Shotgun Ballistic Gun Light Assault Rifle Launcher Rocket Launcher Build | -11 -10 -9 -8 ------- Run | Yrd Mat Mat Mat Slots Evolved 4 | . . 2 2 Power . | . . . . Propulsion 2 | . . 2 . Utility 2 | . . . 2 Weapon . | . . . . Parts Attached 16 | . 6 8 2 Power 3 | . 1 2 . Engine 3 | . 1 2 . Core . | . . . . Reactor . | . . . . Propulsion 5 | . 3 2 . Treads 1 | . . 1 . Leg 2 | . 1 1 . Wheel 2 | . 2 . . Hover . | . . . . Flight . | . . . . Utility 3 | . 1 . 2 Device . | . . . . Storage 1 | . 1 . . Processor 2 | . . . 2 Hackware . | . . . . Protection . | . . . . Artifact . | . . . . Weapon 5 | . 1 4 . Energy Gun 1 | . . 1 . Energy Cannon . | . . . . Ballistic Gun 3 | . 1 2 . Ballistic Cannon . | . . . . Launcher 1 | . . 1 . Special Weapon . | . . . . Impact Weapon . | . . . . Slashing Weapon . | . . . . Piercing Weapon . | . . . . Special Melee Weapon . | . . . . Unidentified Prototypes 1 | . . 1 . Parts Lost 1 | . . 1 . Power . | . . . . Propulsion . | . . . . Utility . | . . . . Weapon 1 | . . 1 . Highest Loss Streak 1 | . . 1 . To Critical Strikes . | . . . . Average Backups 10 | . 6 10 15 Power 1 | . 1 1 2 Propulsion 2 | . 3 1 1 Utility 2 | . . 3 3 Weapon 3 | . . 4 8 Tool/Special . | . . . . Unused Backups 20 | . 6 2 12 Power 3 | . . 1 2 Propulsion 1 | . 1 . . Utility 4 | . 1 . 3 Weapon 12 | . 4 1 7 Tool/Special . | . . . . Average Slot Usage (%) 83 | . 80 84 89 Engine 11 | . 13 11 9 Treads 6 | . . 9 9 Leg 13 | . 25 9 9 Wheel 16 | . 2 22 18 Storage 11 | . 14 11 9 Processor 1 | . . . 17 Ballistic Gun 22 | . 24 22 18 Peak Build Rating 18 | . 7 15 18 Average Rating 10 | . 5 11 17 On Entrance 8 | 6 6 7 14 Avg Prop Armor Cover (%) 16 | . . 16 16 Naked Turns . | . . . . Heaviest Build 153 | 11 146 153 152 Greatest Support 26 | 20 26 26 26 Greatest Overweight (x) 5 | . 5 5 5 Average Overweight (x) 3 | . . 5 5 Largest Inventory Capacity 30 | . 30 30 30 Average Capacity 24 | . 10 30 30 Most Carried 16 | . 8 16 16 Average Carried 10 | . 6 10 14 Final Capacity 30 | 8 30 30 30 Final Carried 16 | 6 6 16 16 Class Distribution -------------------- 74% | Hauler-Mutant 25% | Mutant Dominant Class ---------------- Mutant | -10/Materials Hauler-Mutant | -9/Materials Hauler-Mutant | -8/Materials Resources | -11 -10 -9 -8 ----------- Run | Yrd Mat Mat Mat Matter Collected 645 | 200 194 251 . Remotely . | . . . . Salvage Created 300 | . 43 257 . Parts 24 | . 4 20 . Haulers Intercepted 2 | . 1 1 . Recyclers Shooed . | . . . . Parts Field Recycled . | . . . . Retrieved Matter . | . . . . Parts Self-Destructed . | . . . . Prevented . | . . . . Parts Restored . | . . . . Kills | -11 -10 -9 -8 ------- Run | Yrd Mat Mat Mat Combat Hostiles Destroyed 9 | . . 9 . Guns 7 | . . 7 . AOE 2 | . . 2 . Classes Destroyed 4 | . 1 3 . Hauler 2 | . 1 1 . Swarmer 6 | . . 6 . Grunt 1 | . . 1 . Sentry 2 | . . 2 . Best Kill Streak 3 | . 1 3 . Combat Bots Only 3 | . . 3 . Max Kills in Single Turn 3 | . 1 3 . Gunslinging . | . . . . Exploded 2 | . . 2 . Melee . | . . . . Uniques/NPCs Destroyed . | . . . . Combat | -11 -10 -9 -8 -------- Run | Yrd Mat Mat Mat Hostile Shots Fired 52 | . 7 45 . Missed 14 | . 3 11 . Hits 38 | . 4 34 . Projectile 38 | . 4 34 . Critical Strikes 5 | . . 5 . Damage Taken 492 | . 50 442 . Core 52 | . 16 36 . Absorbed by Shields . | . . . . Core Remaining (%) 94 | 100 93 91 . Volleys Fired 40 | . 13 27 . Largest 2 | . 2 2 . Hottest 53 | . 40 53 . Shots Fired 77 | . 23 54 . Gun 76 | . 23 53 . Cannon . | . . . . Launcher 1 | . . 1 . Special . | . . . . Kinetic 76 | . 23 53 . Thermal . | . . . . Explosive 1 | . . 1 . Electromagnetic . | . . . . Robot Hit Streak 17 | . 4 17 . Robot Miss Streak 4 | . 2 4 . Penetration Max . | . . . . Secondary Targets 1 | . . 1 . Max Gunslinging Chain 1 | . . 1 . Shots Hit Robots 49 | . 12 37 . Core Hits 19 | . 3 16 . Critical Kills . | . . . . Critical Parts Destroyed 1 | . . 1 . Critical Strikes 1 | . . 1 . Destroy 1 | . . 1 . Melee Attacks . | . . . . Impact . | . . . . Slashing . | . . . . Piercing . | . . . . Sneak Attacks . | . . . . Combat Hostiles . | . . . . Follow-up Attacks . | . . . . Damage Inflicted 669 | . 139 530 . Guns 508 | . 137 371 . Cannons . | . . . . Explosions 141 | . . 141 . Melee . | . . . . Ramming 20 | . 2 18 . Kinetic 508 | . 137 371 . Thermal . | . . . . Explosive 141 | . . 141 . Electromagnetic . | . . . . Impact . | . . . . Slashing . | . . . . Piercing . | . . . . Highest Corruption 3 | . 3 . . Average Corruption 2 | . 2 . . Corruption Purged . | . . . . Corruption Blocked . | . . . . Overload Shots . | . . . . Overflow Damage 10 | . . 10 . Projectiles . | . . . . Explosions 10 | . . 10 . Melee . | . . . . Knockbacks . | . . . . Impact . | . . . . Kinetic . | . . . . Secondary . | . . . . Self-Inflicted Damage 21 | . . 21 . Shots 1 | . . 1 . Rammed 1 | . . 1 . Targets Rammed 3 | . 2 1 . Kicked 2 | . 2 . . Crushed . | . . . . Highest Temperature 25 | . . 25 . Average Temperature 5 | . . 5 . Received Heat Transfer 237 | . 27 210 . Siege Activations . | . . . . Martial Activations . | . . . . Shielding Activations . | . . . . Robots Disrupted . | . . . . Combat Hostiles . | . . . . Robots Corrupted . | . . . . Combat Hostiles . | . . . . Parts Fried . | . . . . Impact Corruptions . | . . . . Robots Melted . | . . . . Combat Hostiles . | . . . . Parts Melted . | . . . . Heat Transferred . | . . . . Parts Sabotaged . | . . . . Parts Stolen . | . . . . Parts Stripped . | . . . . Power Chain Reactions . | . . . . Alert | -11 -10 -9 -8 ------- Run | Yrd Mat Mat Mat Maximum Alert Level . | . . . . Low Security (%) 100 | . 100 100 100 Level 1 . | . . . . Level 2 . | . . . . Level 3 . | . . . . Level 4 . | . . . . Level 5 . | . . . . High Security . | . . . . Max Security . | . . . . Peak Influence 117 | . 28 117 32 Initial 32 | . . . 32 Average 24 | . 6 32 24 Influence Increases 301 | . 55 236 10 Destroy 0b10 Robot/C 180 | . . 180 . Destroy 0b10 Robot/NC 10 | . 5 5 . Destroy Leader 44 | . 2 42 . Successful Hack 58 | . 48 . 10 Destroy Structure 9 | . . 9 . Influence Decreases 289 | . 55 159 75 Entered New Map 45 | . . . 45 Time Decay 234 | . 55 149 30 Lost Part 10 | . . 10 . Squads Dispatched 1 | . 1 . . Investigation . | . . . . Extermination . | . . . . Reinforcement 1 | . 1 . . Assault . | . . . . Garrison . | . . . . Intercept . | . . . . Searches Triggered . | . . . . Construction Impeded . | . . . . Haulers Reinforced . | . . . . Active Scanning Responses . | . . . . Cargo Convoy Interrupts . | . . . . Stealth | -11 -10 -9 -8 --------- Run | Yrd Mat Mat Mat Distress Signals 2 | . . 2 . Communications Jammed . | . . . . Distress Signals . | . . . . Times Spotted 21 | . 6 15 . Peak Tracking Total 5 | . 3 5 . Tactical Retreats . | . . . . Traps | -11 -10 -9 -8 ------- Run | Yrd Mat Mat Mat Traps Triggered 4 | . 4 . . Indirectly . | . . . . Trap Hack Attempts . | . . . . Triggered . | . . . . Disarmed . | . . . . Reprogrammed . | . . . . Reused . | . . . . Traps Extracted . | . . . . Installed . | . . . . Triggered . | . . . . Machines | -11 -10 -9 -8 ---------- Run | Yrd Mat Mat Mat Machines Disabled . | . . . . Max in Single Turn . | . . . . Machines Repaired . | . . . . Machines Dismantled . | . . . . Machines Sabotaged . | . . . . Overloaded Fab Kills . | . . . . Hacking | -11 -10 -9 -8 --------- Run | Yrd Mat Mat Mat Machines Accessed 6 | . 3 2 1 Terminals 5 | . 3 1 1 Fabricators . | . . . . Repair Stations . | . . . . Recycling Units . | . . . . Scanalyzers 1 | . . 1 . Garrison Access . | . . . . Total Hacks 23 | . 10 8 5 Successful 11 | . 7 1 3 Failed 12 | . 3 7 2 Catastrophic . | . . . . Database Lockouts . | . . . . Manual 3 | . 3 . . Terminals 18 | . 10 3 5 Fabricators . | . . . . Repair Stations . | . . . . Recycling Units . | . . . . Scanalyzers 5 | . . 5 . Garrison Access . | . . . . Terminal Hacks 9 | . 6 . 3 Robot Analysis 1 | . 1 . . Branch Access Points 1 | . 1 . . Terminal Index 1 | . . . 1 Alert Level 2 | . 1 . 1 Locate Traps 1 | . 1 . . Dispatch Records 1 | . 1 . . Hauler Manifests 2 | . 1 . 1 Fabricator Hacks . | . . . . Repair Station Hacks . | . . . . Recycling Unit Hacks . | . . . . Scanalyzer 1 | . . 1 . Insert Component 1 | . . 1 . Garrison Access Hacks . | . . . . Unauthorized Hacks 1 | . 1 . . Terminals 1 | . 1 . . Botnet 1 | . 1 . . Fabricators . | . . . . Repair Stations . | . . . . Recycling Units . | . . . . Scanalyzers . | . . . . Garrison Access . | . . . . Data Cores Recovered . | . . . . Used . | . . . . Hacking Detections 6 | . 3 2 1 Full Trace Events . | . . . . Feedback Events . | . . . . Feedback Blocked . | . . . . Robot Schematics Acquired . | . . . . Robots Built . | . . . . Authchips . | . . . . Time . | . . . . Total Robot Build Rating . | . . . . Part Schematics Acquired . | . . . . Parts Built . | . . . . Authchips . | . . . . Time . | . . . . Total Part Build Rating . | . . . . Part Studies Acquired . | . . . . Parts Repaired . | . . . . Time . | . . . . Parts Recycled . | . . . . Recycled Matter . | . . . . Retrieved Matter . | . . . . Retrieved Components . | . . . . Parts Scanalyzed . | . . . . Part Schematics Acquired . | . . . . Parts Damaged . | . . . . Bothacking | -11 -10 -9 -8 ------------ Run | Yrd Mat Mat Mat Used RIF Installer . | . . . . Robots Hacked . | . . . . Non-combat . | . . . . Combat . | . . . . Robot Hacks Applied . | . . . . Relay Couplers Released . | . . . . Fabnet Peak Effective % . | . . . . Robots Rewired . | . . . . Allies Hacked . | . . . . Hacks Repelled . | . . . . Allies | -11 -10 -9 -8 -------- Run | Yrd Mat Mat Mat Total Allies . | . . . . Largest Group . | . . . . Highest-Rated Group . | . . . . Highest-Rated Ally . | . . . . Total Orders . | . . . . Ally Attacks . | . . . . Total Damage . | . . . . Kills . | . . . . Allies Corrupted . | . . . . Allies Melted . | . . . . Intel | -11 -10 -9 -8 ------- Run | Yrd Mat Mat Mat Active Infowar (turns) 75 | . . . 75 Optics 74 | . . . 74 T.N.C. 75 | . . . 75 Robot Analysis Total 1 | . 1 . . Derelict Logs Recovered . | . . . . Drone Launches . | . . . . Drone Recoveries . | . . . . Exploration | -11 -10 -9 -8 ------------- Run | Yrd Mat Mat Mat Turns Passed 960 | . 283 602 75 Spaces Moved 525 | 1 188 293 43 Core . | . . . . Treads . | . . . . Legs 172 | 1 171 . . Wheels 353 | . 17 293 43 Hover . | . . . . Flight . | . . . . Fastest Speed 120 | 120 120 165 165 Average Speed 150 | 120 124 165 165 Slowest Speed 165 | 120 165 165 165 Overloaded Moves . | . . . . Propulsion Burnouts . | . . . . Robots Hopped . | . . . . Potential Cave-ins . | . . . . Cave-ins Triggered . | . . . . Exploration Rate (%) 20 | 1 46 29 7 Regions Visited 3 Branch Regions . Pre-discovered Areas . | . . . . Known Exits Taken . | . . . . Unknown Exits Taken 3 | 1 1 1 . Scrap Searched . | . . . . Spaces Dug . | . . . . Terrain Destroyed 7 | . . 7 . Melee . | . . . . Projectile . | . . . . AOE 7 | . . 7 . Terrain Rammed . | . . . . Walls Destroyed . | . . . . Machines Disabled . | . . . . Actions | -11 -10 -9 -8 --------- Run | Yrd Mat Mat Mat Total 627 | . 215 365 47 Wait 19 | . 2 17 . Move 522 | . 187 292 43 Hop . | . . . . Pick Up 21 | . 4 15 2 Fast Attach 3 | . 3 . . Attach 7 | . 1 4 2 Detach 1 | . . 1 . Swap 6 | . 2 4 . Drop 5 | . 1 4 . Fire 40 | . 13 27 . Melee . | . . . . Ram 1 | . . 1 . Kick 2 | . 2 . . Crush . | . . . . Escape Stasis . | . . . . Rewire . | . . . . Trap . | . . . . Miscellaneous . | . . . . Route ------- -11/Scrapyard -10/Materials (discovered 3 exits: *Mat x2 / Min) -9/Materials -8/Materials History --------- Turn | Location | Event 1 | -11/Scrapyard | Discovered new exit (range 0) 1 | -11/Scrapyard | Entered Materials 123 | -10/Materials | Discovered new exit (range 6) 173 | -10/Materials | Identified exit to Mines 257 | -10/Materials | Discovered new exit (range 11) 284 | -10/Materials | Entered another Materials area 284 | -9/Materials | Evolved 2 slots: Propulsion x2 560 | -9/Materials | Build established: Hauler-Mutant 857 | -9/Materials | Discovered new exit (range 10) 886 | -9/Materials | Entered another Materials area 886 | -8/Materials | Evolved 2 slots: Utility x2 961 | -8/Materials | Self-destructed Last Messages --------------- Found 6 haulers: A-02 Transporter 4x Aerolev Unit 2x Hvy. Particle Gun (1 escort) A-02 Transporter 4x Aerolev Unit A-02 Transporter 1x Prc. Beam Rifle 2x Adv. Beam Rifle (2 escorts) A-02 Transporter 2x Deuterium Engine 1x Carbon-fiber Leg A-02 Transporter 6x Hvy. Particle Gun (2 escorts) A-02 Transporter 6x Imp. EM Shotgun 00944_ Acquired Imp. Sensor Array. Map ----- +----------------------------------------------------+ | ?????????????????????????????????? | | ?????????????????????????????????? | | ?????????????????????????????????? | | ?????????????????????????????????? | | ?????????????????????????????????? | | ?????????????????????????????????? | | ?????????????????????????????????? | | ?????????????????????????????????? | | ?????????????????????????????????? | | ?????????????????????????????????? | | ?????????????????????????????????? | | ?????????????????????????????????? | | ?????????????????????????????????? | | ?????????????????????????????????? | | ?????????????????????????????????? | | ?????????????????????????????????? | | ???##########????????????????????? | | ???? = [#????????????????????? | | ??? #????????????????????? | | ??# """ #????????????????????? | | ??# """ #????????????????????? | | ??# """ "" #????????????????????? | | ??? """ """#+#######????????????? | | ????? S"# #????????????? | | ??????? # """ #????????????? | | ??????###@### """ #????????????? | | ??????# # """ #????????????? | | ??????# # #????????????? | | ??????# + """ #????????????? | | ??????# # """ #????????????? | | ??????# # """ #????????????? | | ######## ## #????????????? | | # # ## #????????????? | | # """ # ## #????????????? | | # """ + ##########????????????? | | # """ # #?????????????????????? | | # """ # #?????????????????????? | | # """ # #?????????????????????? | | # #####?????????????????????? | | # !#?????????????????????????? | | # #?????????????????????????? | | # "" #?????????????????????????? | | # "T #?????????????????????????? | | # "" #?????????????????????????? | | # #?????????????????????????? | | ########?????????????????????????? | | ?????????????????????????????????? | | ?????????????????????????????????? | | ?????????????????????????????????? | | ?????????????????????????????????? | +----------------------------------------------------+ Best States ------------- Heat Dissipation 31 Energy Generation 14 Energy Capacity 280 Matter Stores 300 Matter Capacity 300 Sight Range 18 Terrain Scan Density 10 Evasion (%) 55 Item Schematics ----------------- None Robot Schematics ------------------ None Fabricated ------------ Nothing Repaired ---------- Nothing Studied --------- None Alien Tech Used ----------------- None Achievements -------------- None Challenges ------------ None Game ------ Seed TransportDecoySegregator Manual? 0 Play Time 00:10:24 Cumulative 99.4 hours Start 2026.03.27 @ 16:29:02 End 2026.03.27 @ 16:38:55 Sessions 1 Manual Loads 0 Difficulty Rogue Special Mode None Game No. 90 Rogue 45 Adventurer 45 Explorer 0 Win Type - Total 3 Types 2/0/0/1/0/0/0/0/0/0 Lore% 60 Gallery% 50 Achievement% 37 Wizard Run 0 Options --------- Layout 0 ASCII 0 Keyboard 1 Movement Numpad Keybinds 0 Fullscreen 1 Font 24/Smallcaps Map View 76x50 Zoom Use 0% Tactical HUD 1 Map Filters NONE Filters NONE Steam 1 RUN: 6d9af82b-79ef-4299-b5c4-a2784481cc58